Cogmind - Beta 15 @@@ ROGUE MODE // 2025.06.19 @ 22:03:54 Player: the Result: Escaped! Performance ------------- Evolutions (9) 4500 Regions Visited (13) 2600 Robots Destroyed (272) 1360 Value Destroyed (13100) 13100 Prototype IDs (46) 920 Alien Tech Used (6) 1200 Bonus (6654) 6654 TOTAL SCORE: 30334 Bonus ------- High Alert Combat Kills 1184 Follower Combat Kills 171 Entered DSFs 500 Met Sigix 2000 Win 3000 Friendly Fire -201 Cogmind --------- Core Integrity 1348/1600 Matter 290/300 Energy 1284/1450 System Corruption 1% Temperature Warm (135) Movement Hovering (127) Location To Epsilon Eridani Parts ------- > --- POWER (3) -------- Multi-Quantum Reactor > --- PROPULSION (6) --- Hovering Antigrav-Myomer Exoskeleton > --- UTILITY (12) ----- Scrap Engine Advanced Heat Sink Advanced Heat Sink Advanced Heat Sink High-capacity Storage Unit Advanced Sensor Array Advanced Signal Interpreter Improved Armor Integrity Analyzer Graphene Brace Advanced Focal Shield Experimental Shield Generator > --- WEAPON (4) ------- Core Cannon Hpw. KE Hardcell Construct/C > --- INVENTORY (20) --- Heavy Deuterium Engine Advanced Heat Sink Advanced Heat Sink Advanced Heat Sink Energy Well (350) Improved Weapon Cycler Advanced Transmission Jammer Advanced Force Field Advanced Field Recycling Unit (0) Enhanced Hardcell Cannon Enhanced Hardcell Cannon Peak State ------------ > --- POWER ------------ Multi-Quantum Reactor > --- PROPULSION ------- Hovering Antigrav-Myomer Exoskeleton > --- UTILITY ---------- Scrap Engine Advanced Heat Sink Advanced Heat Sink Advanced Heat Sink High-capacity Storage Unit Advanced Sensor Array Advanced Signal Interpreter Improved Armor Integrity Analyzer Graphene Brace Advanced Focal Shield Experimental Shield Generator > --- WEAPON ----------- Core Cannon Hpw. KE Hardcell Construct/C > --- INVENTORY -------- Heavy Deuterium Engine Advanced Heat Sink Advanced Heat Sink Advanced Heat Sink Energy Well Improved Weapon Cycler Advanced Transmission Jammer Advanced Force Field Advanced Field Recycling Unit Enhanced Hardcell Cannon Enhanced Hardcell Cannon [Rating: 189] Favorites ----------- Power Constructs Engine Subdweller Power Source Power Core Enhanced Nuclear Core Reactor Constructs Propulsion Light Treads Treads Light Treads Leg Cargo Legs Wheel Wheel Hover Unit Constructs Utility High-capacity Storage Unit Device Advanced Heat Sink Storage High-capacity Storage Unit Processor Advanced Targeting Computer Hackware Improved Hacking Suite Protection Light Armor Plating Artifact Phase Armor Weapon Constructs Energy Gun Gatling Laser Energy Cannon Cooled Particle Cannon Ballistic Gun Assault Rifle Ballistic Cannon Constructs Launcher Subdweller Shrapnel Launcher Special Weapon Mining Laser Impact Weapon Core Stripper Slashing Weapon Makeshift Sword Build | -11 -10 -10 -8 -7 -7 -7 -5 -4 -3 -3 -2 -2 -1 ------- Run | Yrd Mat Sub Mat Fac Sto Rec Fac Fac Res Qua Res DSF Acc Slots Evolved 18 | . . . 4 2 . . 4 2 2 . 2 . 2 Power 2 | . . . . . . . 1 . . . 1 . . Propulsion 4 | . . . 2 . . . 1 . . . . . 1 Utility 10 | . . . 2 1 . . 2 2 1 . 1 . 1 Weapon 2 | . . . . 1 . . . . 1 . . . . Parts Attached 170 | 9 4 15 38 10 23 4 11 4 8 19 1 12 12 Power 12 | 1 . 3 6 . 2 . . . . . . . . Engine 10 | 1 . 3 5 . 1 . . . . . . . . Core 2 | . . . 1 . 1 . . . . . . . . Reactor . | . . . . . . . . . . . . . . Propulsion 27 | 4 . 1 8 1 8 3 1 . . 1 . . . Treads 18 | 2 . . 7 1 8 . . . . . . . . Leg 1 | . . 1 . . . . . . . . . . . Wheel 8 | 2 . . 1 . . 3 1 . . 1 . . . Hover . | . . . . . . . . . . . . . . Flight . | . . . . . . . . . . . . . . Utility 89 | 2 1 7 15 6 2 1 10 4 8 13 1 7 12 Device 55 | 1 . . 7 4 1 1 10 3 7 7 1 4 9 Storage 6 | 1 1 1 1 . . . . . . . . 2 . Processor 9 | . . . 2 1 . . . 1 1 2 . 1 1 Hackware 3 | . . . 1 . . . . . . 1 . . 1 Protection 15 | . . 6 4 1 1 . . . . 2 . . 1 Artifact 1 | . . . . . . . . . . 1 . . . Weapon 42 | 2 3 4 9 3 11 . . . . 5 . 5 . Energy Gun 6 | . . . 2 . 4 . . . . . . . . Energy Cannon 13 | . . . 3 2 4 . . . . 3 . 1 . Ballistic Gun 3 | 2 . . 1 . . . . . . . . . . Ballistic Cannon 11 | . 3 1 3 . . . . . . . . 4 . Launcher 3 | . . 1 . 1 1 . . . . . . . . Special Weapon 3 | . . 1 . . 1 . . . . 1 . . . Impact Weapon 2 | . . . . . 1 . . . . 1 . . . Slashing Weapon 1 | . . 1 . . . . . . . . . . . Piercing Weapon . | . . . . . . . . . . . . . . Special Melee Weapon . | . . . . . . . . . . . . . . Unidentified Prototypes 25 | . . . 5 . 7 1 1 1 2 6 . 1 1 Parts Lost 44 | . . 6 15 . . . 2 . 1 8 . 5 7 Power 4 | . . 2 2 . . . . . . . . . . Propulsion 5 | . . . 4 . . . . . . . . 1 . Utility 27 | . . 2 8 . . . 2 . 1 4 . 4 6 Weapon 8 | . . 2 1 . . . . . . 4 . . 1 Highest Loss Streak 7 | . . 4 4 . . . 1 . 1 7 . 2 4 To Critical Strikes . | . . . . . . . . . . . . . . Average Backups 17 | 3 10 17 17 18 18 18 19 19 18 18 15 16 16 Power 1 | . 1 . 1 2 2 3 2 2 2 1 1 1 1 Propulsion 1 | 1 2 5 2 . . . . . . . . . . Utility 9 | . 2 6 6 9 9 8 12 12 12 13 11 11 10 Weapon 5 | 1 4 5 7 5 6 7 5 5 3 1 2 4 4 Tool/Special . | . . . . . . . . . . . . . . Unused Backups 76 | 1 . 7 14 2 10 5 6 1 2 10 2 3 13 Power 7 | . . . 1 . 2 1 1 . . 1 . . 1 Propulsion 2 | 1 . . 1 . . . . . . . . . . Utility 27 | . . 3 6 1 4 . 4 1 . 1 1 2 4 Weapon 40 | . . 4 6 1 4 4 1 . 2 8 1 1 8 Tool/Special . | . . . . . . . . . . . . . . Average Slot Usage (%) 69 | . 100 76 84 99 98 61 51 56 56 56 54 55 54 Engine 4 | . 14 11 4 7 1 4 3 . . . . . . Core 1 | . . . 1 . 5 . 1 1 . 2 . . . Treads 8 | . 28 5 17 30 28 6 2 5 4 2 1 4 1 Leg 2 | . . 8 3 . . . . . . . 2 . . Wheel 1 | . . . 4 . . 5 2 . . . . . . Device 12 | . 14 . 14 12 14 7 16 25 27 22 19 18 27 Storage 7 | . 14 12 7 7 7 7 5 5 4 4 4 7 4 Processor 8 | . . . 7 12 15 15 11 10 9 9 8 11 9 Protection 4 | . . 15 3 4 . . . . . 1 . . . Energy Cannon 5 | . . . 4 20 19 11 2 3 4 3 . 1 1 Ballistic Cannon 5 | . 19 14 10 . . . 2 1 . . . 4 3 Slashing Weapon 1 | . . 5 1 1 . . . . . . . . . Peak Build Rating 189 | 7 8 32 43 39 52 62 101 109 130 186 175 182 189 Average Rating 70 | 4 7 24 31 37 46 51 84 107 117 145 170 148 165 On Entrance 75 | . 7 8 32 29 39 52 62 100 107 130 168 172 149 Naked Turns . | . . . . . . . . . . . . . . Heaviest Build 143 | 13 30 77 73 71 74 74 81 83 112 142 129 143 128 Greatest Support 182 | 40 40 55 80 80 90 90 133 85 85 162 163 163 182 Greatest Overweight (x) 7 | . . 1 7 . 1 3 1 . 1 1 . 1 1 Average Overweight (x) . | . . . 1 . . 1 . . . . . . . Largest Inventory Capacity 20 | 8 15 20 20 20 20 20 20 20 20 20 20 20 20 Average Capacity 19 | 6 13 19 20 20 20 20 20 20 20 20 20 20 20 Most Carried 20 | 5 15 20 20 20 20 20 20 20 20 20 20 20 20 Average Carried 18 | 3 10 18 19 19 19 19 19 19 18 19 19 19 17 Final Capacity 20 | 8 15 20 20 20 20 20 20 20 20 20 20 20 20 Final Carried 20 | 5 15 20 20 20 20 20 20 20 20 20 20 20 11 Scrap Engine Consumption 204 | . . . . . . 51 31 4 20 43 7 27 21 Constructs Created 5 | . . . . . . 3 . . 1 1 . . . Constructs Modified 86 | . . . . . . 16 12 4 6 20 3 12 13 Class Distribution -------------------- 47% | Mutant 29% | Construct 7% | Scavenger-Skirmisher 3% | Scavenger-Construct 3% | Skirmisher Dominant Class ---------------- Mutant | -10/Materials Mutant | -10/Subcaves Mutant | -8/Materials Scavenger-Mutant | -7/Factory Scavenger-Skirmisher | -7/Storage Construct | -7/Recycling Construct | -5/Factory Construct | -4/Factory Construct | -3/Research Construct | -3/Quarantine Mutant | -2/Research Mutant | -2/DSF Scavenger-Construct | -1/Access Resources | -11 -10 -10 -8 -7 -7 -7 -5 -4 -3 -3 -2 -2 -1 ----------- Run | Yrd Mat Sub Mat Fac Sto Rec Fac Fac Res Qua Res DSF Acc Matter Collected 5355 | 350 136 900 1395 152 561 116 261 70 135 735 20 279 245 Remotely 586 | . . . 586 . . . . . . . . . . Salvage Created 14365 | 136 206 307 1384 274 1975 126 1901 1094 1297 3098 103 886 1578 Parts 637 | 8 16 24 71 12 95 3 95 36 52 120 . 28 77 Haulers Intercepted 18 | . 1 . 6 . 6 . 2 . 1 2 . . . Recyclers Shooed 2 | . . . . . . . 1 . 1 . . . . Parts Field Recycled . | . . . . . . . . . . . . . . Retrieved Matter . | . . . . . . . . . . . . . . Parts Self-Destructed 8 | . . 8 . . . . . . . . . . . Prevented . | . . . . . . . . . . . . . . Kills | -11 -10 -10 -8 -7 -7 -7 -5 -4 -3 -3 -2 -2 -1 ------- Run | Yrd Mat Sub Mat Fac Sto Rec Fac Fac Res Qua Res DSF Acc Combat Hostiles Destroyed 207 | . 4 18 29 8 29 2 26 8 13 40 1 11 18 Guns 14 | . 1 . 8 . 1 1 . . . 3 . . . Cannons 158 | . 3 11 21 5 25 1 21 8 11 24 . 10 18 AOE 20 | . . 7 . 3 1 . 3 . . 6 . . . Classes Destroyed 22 | 2 3 3 4 2 1 . 2 . . 3 . 1 1 Worker 6 | . . . 1 . 3 . 1 . . 1 . . . Builder 10 | . . . 3 . 2 . . 4 . . . . 1 Tunneler 2 | 2 . . . . . . . . . . . . . Hauler 18 | . 1 . 6 . 6 . 2 . 1 2 . . . Recycler 11 | 1 1 . 3 . . . 1 2 1 2 . . . Mechanic 1 | . . . . . . . . . . 1 . . . Operator 2 | . . . . . 1 . . . . . . . 1 Turret 2 | . . 2 . . . . . . . . . . . Watcher 10 | . . . 1 . 1 . 2 2 1 3 . . . Swarmer 29 | . 3 2 9 3 . . 4 . . 4 . . 4 Grunt 73 | . 1 2 14 2 17 . 10 6 8 5 . 4 4 Brawler 2 | . . . . 1 . . . . . . . . 1 Duelist 2 | . . . . . . . 2 . . . . . . Protector 1 | . . . . . . . . . . 1 . . . Researcher 3 | . . . . . . . . . . 3 . . . Sentry 24 | . . 1 5 1 7 1 . 2 2 3 1 . 1 Specialist 7 | . . . . . . . . . . . . 7 . Hunter 12 | . . . 1 . . . . . . 8 . . 3 Programmer 35 | . . . . 1 5 . 8 . 2 16 . . 3 Heavy 3 | . . . . . . . 2 . 1 . . . . Behemoth 2 | . . . . . . . . . . . . . 2 Lightning 3 | . . . . . . . . . . 3 . . . Subdweller 14 | . . 13 . . . 1 . . . . . . . Best Kill Streak 9 | 1 4 7 6 4 4 1 7 6 5 9 1 4 7 Combat Bots Only 8 | . 3 5 5 4 4 1 6 4 3 8 1 4 7 Max Kills in Single Turn 3 | 1 2 2 2 2 2 1 3 1 1 3 1 2 1 Gunslinging . | . . . . . . . . . . . . . . Exploded 2 | . . 2 . 2 1 . 2 . . 2 . . . Melee . | . . . . . . . . . . . . . . Uniques/NPCs Destroyed . | . . . . . . . . . . . . . . Combat | -11 -10 -10 -8 -7 -7 -7 -5 -4 -3 -3 -2 -2 -1 -------- Run | Yrd Mat Sub Mat Fac Sto Rec Fac Fac Res Qua Res DSF Acc Hostile Shots Fired 1496 | . 17 80 263 30 117 21 110 53 49 302 2 108 344 Missed 444 | . 4 21 57 15 49 7 28 10 15 105 . 19 114 Hits 1052 | . 13 59 206 15 68 14 82 43 34 197 2 89 230 Melee 1 | . . . . . . . 1 . . . . . . Projectile 1051 | . 13 59 206 15 68 14 81 43 34 197 2 89 230 AOE 1 | . . . . . . . . . . . . . 1 Critical Strikes 47 | . . 3 4 1 2 . 4 3 4 14 . 4 8 Actively Blocked 22 | . . . . . . . . . . 11 . 3 8 Part Disruptions 3 | . . . . . 1 . 1 . 1 . . . . Damage Taken 20454 | . 116 1268 2900 157 926 115 1937 602 653 4467 96 3152 4065 Core 2132 | . 11 183 367 . 185 38 351 29 128 337 . 293 210 Absorbed by Shields 1162 | . . . . . . . 26 227 74 401 . . 434 Reduced by Siege Mode 3 | . . . . . . . . . 3 . . . . Redirected to Shielding 115 | . . . 49 19 47 . . . . . . . . Ignored by Resistances 515 | . . . . . . . . . . . . . 515 Regen/Repaired (Parts) 5810 | . . . 90 . . 42 1007 416 703 1176 152 702 1522 Core Remaining (%) 64 | 100 . 22 33 . . 68 64 97 . 41 . 71 84 Volleys Fired 771 | 10 14 90 122 17 68 10 88 53 44 123 . 34 98 Largest 3 | 2 2 2 2 3 3 2 1 1 1 2 . 3 1 Hottest 450 | 40 60 100 136 216 270 180 450 450 450 300 . 300 300 Shots Fired 1093 | 20 28 127 235 37 186 16 88 53 44 123 . 38 98 Gun 121 | 20 16 . 45 . 23 2 . . . 15 . . . Cannon 922 | . 12 91 190 32 163 14 88 53 44 99 . 38 98 Launcher 23 | . . 12 . 5 . . . . . 6 . . . Special 27 | . . 24 . . . . . . . 3 . . . Kinetic 512 | 20 28 103 160 . . 4 40 28 15 12 . 31 71 Thermal 493 | . . 24 75 32 186 12 29 25 25 51 . 7 27 Explosive 11 | . . . . 5 . . . . . 6 . . . Electromagnetic 74 | . . . . . . . 19 . 4 51 . . . Robot Hit Streak 22 | 4 9 7 21 9 22 8 20 6 7 19 . 4 10 Robot Miss Streak 4 | 4 2 3 4 1 4 1 3 2 1 2 . 4 3 Penetration Max 3 | . . . . . . . . . . 3 . 1 1 Secondary Targets . | . . . . . . . . . . . . . . Capacitor 16 | . . . . . . . . . . . . 11 5 Shots Hit Robots 705 | 11 18 70 164 20 127 11 55 33 27 88 1 26 54 Core Hits 366 | 4 8 33 61 19 63 6 25 13 13 90 . 12 19 Critical Kills 14 | . 1 . . . 3 . . . . 6 . 4 . Critical Parts Destroyed 12 | . 1 . . . . . . . . 4 . 5 2 Critical Strikes 37 | . 2 3 7 . 3 . . . . 10 . 10 2 Meltdown 3 | . . . . . 3 . . . . . . . . Destroy 23 | . 2 . . . . . . . . 10 . 9 2 Blast 10 | . . 3 6 . . . . . . . . 1 . Sever 1 | . . . 1 . . . . . . . . . . Melee Attacks 75 | . . 32 23 5 . . . . . 6 4 5 . Kinetic 15 | . . . . . . . . . . 6 4 5 . Impact . | . . . . . . . . . . . . . . Slashing 60 | . . 32 23 5 . . . . . . . . . Piercing . | . . . . . . . . . . . . . . Sneak Attacks 4 | . . . . . . . . . . 3 . 1 . Combat Hostiles 1 | . . . . . . . . . . . . 1 . Follow-up Attacks . | . . . . . . . . . . . . . . Damage Inflicted 46924 | 135 286 2464 3634 824 4408 420 5382 3435 3090 11304 . 3389 8153 Guns 1825 | 135 147 . 515 . 579 49 . . . 400 . . . Cannons 40042 | . 139 1242 2834 511 3645 371 4847 3235 3090 8634 . 3341 8153 Explosions 4464 | . . 1222 . 313 184 . 535 200 . 2010 . . . Melee 577 | . . . 285 . . . . . . 244 . 48 . Ramming 16 | . . . . . . . . . . 16 . . . Kinetic 19117 | 135 286 2464 2300 . . 152 3085 1711 1164 1213 . 1589 5018 Thermal 20676 | . . . 1049 511 4224 268 1716 1724 1642 4607 . 1800 3135 Explosive 2380 | . . . . 313 184 . . . . 1883 . . . Electromagnetic 4450 | . . . . . . . 581 . 284 3585 . . . Impact . | . . . . . . . . . . . . . . Slashing 285 | . . . 285 . . . . . . . . . . Piercing . | . . . . . . . . . . . . . . Highest Corruption 34 | . . . 10 . 1 2 4 . 3 34 1 30 1 Average Corruption 8 | . . . 6 . 1 1 1 . 2 16 1 20 1 Corruption Purged 12 | . . . 5 . . . 4 . . 3 . . . Corruption Blocked . | . . . . . . . . . . . . . . Effects 188 | . . . 11 . 3 29 13 . 9 91 . 31 1 Message Errors 47 | . . . 4 . 1 7 2 . 2 25 . 6 . Matter Fused 46 | . . . 2 . 1 10 4 . 3 19 . 6 1 Heat Flow Errors 23 | . . . 2 . 1 3 3 . 1 8 . 5 . Energy Discharges 20 | . . . 1 . . 2 1 . 1 13 . 2 . Parts Rejected 3 | . . . . . . 1 . . . 2 . . . Parts Fused 2 | . . . . . . . . . . 2 . . . Data Loss (minor) 24 | . . . . . . 1 3 . 1 12 . 7 . Data Loss (major) 9 | . . . 2 . . 3 . . . 2 . 2 . Misfires 3 | . . . . . . . . . . 2 . 1 . Alerts 5 | . . . . . . 1 . . 1 2 . 1 . Misdirections 1 | . . . . . . . . . . 1 . . . Weapon Failures 5 | . . . . . . 1 . . . 3 . 1 . Overload Shots 44 | . . . . . 33 5 1 1 4 . . . . Effects 4 | . . . . . 3 . . . 1 . . . . Energy Bleed 3 | . . . . . 3 . . . . . . . . Heat Surge 1 | . . . . . . . . . 1 . . . . Overflow Damage 5447 | . . 49 44 13 145 . 782 518 754 1797 . 268 1077 Projectiles 5177 | . . . 44 7 145 . 657 518 754 1724 . 251 1077 Explosions 191 | . . 49 . 6 . . 125 . . 11 . . . Melee 79 | . . . . . . . . . . 62 . 17 . Knockbacks 66 | . 3 4 13 . . . 9 13 5 5 . 8 6 Impact . | . . . . . . . . . . . . . . Kinetic 62 | . 3 4 13 . . . 9 12 4 4 . 7 6 Secondary 4 | . . . . . . . . 1 1 1 . 1 . Self-Inflicted Damage 529 | . . 98 . . 79 . 83 . . 269 . . . Shots 18 | . . 4 . . 1 . 2 . . 11 . . . Rammed 2 | . . . 1 . . . . . . 1 . . . Targets Rammed 2 | . . . 1 . . . . . . 1 . . . Kicked . | . . . . . . . . . . . . . . Crushed . | . . . . . . . . . . . . . . Highest Temperature 1590 | . . . 395 305 342 239 355 316 395 284 44 1590 526 Average Temperature 136 | . . . 120 122 93 76 119 90 167 102 28 391 118 Received Heat Transfer 1997 | . 30 210 927 33 177 24 164 173 72 34 9 99 45 Effects 35 | . . . 1 . 1 . 2 . . . . 26 5 Shutdowns 6 | . . . . . . . 1 . . . . 4 1 Energy Bleed 5 | . . . . . 1 . 1 . . . . 2 1 Interference 9 | . . . . . . . . . . . . 6 3 Matter Decay 4 | . . . 1 . . . . . . . . 3 . Short Circuit 1 | . . . . . . . . . . . . 1 . Damage (minor) 3 | . . . . . . . . . . . . 3 . Damage (major) 6 | . . . . . . . . . . . . 6 . Damage (core) 1 | . . . . . . . . . . . . 1 . Siege Activations 1 | . . . . . . . . . 1 . . . . Total Turns 6 | . . . . . . . . . 6 . . . . Longest Duration 6 | . . . . . . . . . 6 . . . . Martial Activations . | . . . . . . . . . . . . . . Shielding Activations . | . . . . . . . . . . . . . . Robots Disrupted 3 | . . . . . . . 1 . 1 1 . . . Combat Hostiles 3 | . . . . . . . 1 . 1 1 . . . Robots Corrupted 13 | . . . . . . . 3 . 2 8 . . . Combat Hostiles 11 | . . . . . . . 2 . 2 7 . . . Parts Fried 58 | . . . . . . 1 8 . 2 46 . 1 . Impact Corruptions 1 | . . . . . . . . . . 1 . . . Robots Melted 3 | . . . . . 3 . . . . . . . . Combat Hostiles 2 | . . . . . 2 . . . . . . . . Parts Melted 27 | . . . 5 2 19 . . . . . . 1 . Heat Transferred 10546 | . . . 1850 890 5663 372 818 150 . 100 . . 703 Parts Sabotaged . | . . . . . . . . . . . . . . Parts Stolen . | . . . . . . . . . . . . . . Parts Stripped 32 | . . . . . . . . . . 14 8 10 . Power Chain Reactions 3 | . . . . . . . 1 1 . 1 . . . Alert | -11 -10 -10 -8 -7 -7 -7 -5 -4 -3 -3 -2 -2 -1 ------- Run | Yrd Mat Sub Mat Fac Sto Rec Fac Fac Res Qua Res DSF Acc Maximum Alert Level 3 | . . . 1 . 2 1 2 1 1 3 2 2 2 Low Security (%) 44 | 100 100 . 54 100 13 96 45 . 90 10 . . . Level 1 32 | . . . 45 . 62 3 43 100 9 25 . 42 48 Level 2 15 | . . . . . 24 . 11 . . 21 100 57 51 Level 3 7 | . . . . . . . . . . 42 . . . Level 4 . | . . . . . . . . . . . . . . Level 5 . | . . . . . . . . . . . . . . High Security . | . . . . . . . . . . . . . . Max Security . | . . . . . . . . . . . . . . Sterilizations 1 | . . . . . . . . . . . . 1 . Peak Influence 876 | 5 70 . 288 170 618 239 523 367 258 876 501 642 530 Initial 491 | . . . . 130 27 239 200 254 181 138 491 309 384 Average 256 | 1 12 . 166 87 308 23 204 310 138 536 459 483 397 Influence Increases 7406 | 15 107 180 959 265 1332 85 1104 314 473 1488 51 383 650 Destroy 0b10 Robot/C 4040 | . 80 140 580 160 680 20 520 160 260 840 20 220 360 Destroy 0b10 Robot/NC 315 | 15 10 . 70 . 70 . 30 40 20 50 . . 10 Destroy Leader 868 | . 12 10 154 40 216 . 118 34 64 110 10 40 60 Allied During Kill 96 | . . . . . 86 . . . 10 . . . . Successful Hack 296 | . 5 . 29 30 67 60 10 10 16 69 . . . Disable Machine 450 | . . . 15 15 90 . 60 . 15 165 15 15 60 Destroy Structure 661 | . . . 21 20 48 5 106 40 58 164 6 93 100 Advance Influence 200 | . . . . . . . 200 . . . . . . Partial Spotted 30 | . . . . . . . . . . 30 . . . Lose Combat Pursuer 450 | . . 30 90 . 75 . 60 30 30 60 . 15 60 Influence Decreases 6876 | 15 107 180 671 493 777 700 585 487 573 860 513 153 762 Entered New Map 1849 | . . . . 158 33 376 . 265 165 108 383 103 258 Time Decay 4200 | 15 62 130 521 208 604 289 545 222 368 672 130 . 434 Lost Part 430 | . . 50 150 . . . 20 . 10 80 . 50 70 Lost Ally 190 | . . . . . 140 . 20 . 30 . . . . Purge Threat 207 | . 45 . . 127 . 35 . . . . . . . Squads Dispatched 53 | . 1 . 6 2 12 . 4 1 4 10 1 3 9 Investigation 5 | . . . 2 . 2 . . . . 1 . . . Extermination 21 | . . . . 1 5 . 3 . 2 7 . . 3 Reinforcement 17 | . 1 . 2 1 4 . 1 1 2 1 . 3 1 Assault 3 | . . . . . . . . . . 1 1 . 1 Garrison 7 | . . . 2 . 1 . . . . . . . 4 Intercept . | . . . . . . . . . . . . . . Searches Triggered . | . . . . . . . . . . . . . . Construction Impeded 1 | . . . . . . . . . . . . . 1 Haulers Reinforced 3 | . . . . . 2 . . . . 1 . . . Active Scanning Responses . | . . . . . . . . . . . . . . Cargo Convoy Interrupts . | . . . . . . . . . . . . . . Stealth | -11 -10 -10 -8 -7 -7 -7 -5 -4 -3 -3 -2 -2 -1 --------- Run | Yrd Mat Sub Mat Fac Sto Rec Fac Fac Res Qua Res DSF Acc Distress Signals 15 | . 1 . 5 . 3 1 1 1 2 1 . . . Communications Jammed 47 | . . . . . 1 . 5 . 5 36 . . . Distress Signals 45 | . . . . . . . 5 . 5 35 . . . Times Spotted 295 | . 5 18 50 9 43 6 33 17 16 57 1 11 29 Peak Tracking Total 7 | . 4 4 7 3 3 2 7 5 6 5 1 4 7 Tactical Retreats 23 | . . 2 4 . 4 . 4 2 1 2 . 1 3 Traps | -11 -10 -10 -8 -7 -7 -7 -5 -4 -3 -3 -2 -2 -1 ------- Run | Yrd Mat Sub Mat Fac Sto Rec Fac Fac Res Qua Res DSF Acc Traps Triggered 12 | . 1 2 3 . 1 . . . 1 . 1 1 2 Indirectly . | . . . . . . . . . . . . . . Trap Hack Attempts . | . . . . . . . . . . . . . . Triggered . | . . . . . . . . . . . . . . Disarmed . | . . . . . . . . . . . . . . Reprogrammed . | . . . . . . . . . . . . . . Reused . | . . . . . . . . . . . . . . Traps Extracted . | . . . . . . . . . . . . . . Installed 1 | . . 1 . . . . . . . . . . . Triggered . | . . . . . . . . . . . . . . Most Traps Carried 1 | . . 1 . . . . . . . . . . . Machines | -11 -10 -10 -8 -7 -7 -7 -5 -4 -3 -3 -2 -2 -1 ---------- Run | Yrd Mat Sub Mat Fac Sto Rec Fac Fac Res Qua Res DSF Acc Machines Disabled 34 | . . 4 1 1 6 . 4 . 1 11 1 1 4 Max in Single Turn 3 | . . 3 1 1 1 . 3 . 1 1 1 1 1 Garrison Access 1 | . . . . . . . . . . 1 . . . Machines Repaired . | . . . . . . . . . . . . . . Machines Dismantled 1 | . . . . . 1 . . . . . . . . Machines Sabotaged . | . . . . . . . . . . . . . . Overloaded Fab Kills . | . . . . . . . . . . . . . . Hacking | -11 -10 -10 -8 -7 -7 -7 -5 -4 -3 -3 -2 -2 -1 --------- Run | Yrd Mat Sub Mat Fac Sto Rec Fac Fac Res Qua Res DSF Acc Machines Accessed 71 | . 2 2 8 2 11 14 4 3 4 16 2 . 3 Terminals 44 | . 2 . 5 1 8 6 1 2 3 14 1 . 1 Fabricators 3 | . . . . . . . . . 1 . . . 2 Repair Stations 7 | . . . 2 . 2 . 2 . . 1 . . . Recycling Units 7 | . . . . . . 6 . . . . 1 . . Scanalyzers 3 | . . . 1 1 . . . 1 . . . . . Garrison Access 3 | . . . . . 1 . 1 . . 1 . . . Total Hacks 177 | . 4 14 28 7 22 45 8 7 7 27 2 . 6 Successful 95 | . 2 14 11 6 11 25 3 3 3 15 1 . 1 Failed 80 | . 2 . 16 1 11 19 5 4 4 12 1 . 5 Catastrophic 16 | . . . 2 . 4 4 . . 2 3 1 . . Database Lockouts 2 | . . . 1 . . 1 . . . . . . . Manual 43 | . 2 . 9 3 7 6 3 1 2 8 . . 2 Terminals 108 | . 4 . 19 5 15 24 3 6 5 24 1 . 2 Fabricators 6 | . . . . . . . . . 2 . . . 4 Repair Stations 18 | . . . 6 . 6 . 4 . . 2 . . . Recycling Units 13 | . . . . . . 12 . . . . 1 . . Scanalyzers 6 | . . . 3 2 . . . 1 . . . . . Garrison Access 3 | . . . . . 1 . 1 . . 1 . . . Terminal Hacks 62 | . 1 14 5 2 5 19 . 3 1 11 1 . . Record 27 | . . 13 . . . 8 . . . 6 . . . Part Schematic 3 | . . . . . . 3 . . . . . . . Robot Analysis 3 | . . . 1 . . 2 . . . . . . . Prototype ID Bank 1 | . . . . . . . . . . 1 . . . Open Door 6 | . . . . . 4 . . . 1 1 . . . Open DSF 2 | . . . . . . . . 1 . . 1 . . Branch Access Points 1 | . . . 1 . . . . . . . . . . Terminal Index 1 | . . . 1 . . . . . . . . . . Alert Level 4 | . . . 1 . . 1 . 1 . 1 . . . Unreport Threat 5 | . 1 . . 2 . 2 . . . . . . . Locate Traps 1 | . . . . . . . . . . 1 . . . Hauler Manifests 2 | . . . 1 . . . . . . 1 . . . Zone Layout 3 | . . . . . 1 1 . 1 . . . . . Proto ID Catalog 1 | . . 1 . . . . . . . . . . . Release Object 2 | . . . . . . 2 . . . . . . . Fabricator Hacks 2 | . . . . . . . . . 1 . . . 1 Network Status 2 | . . . . . . . . . 1 . . . 1 Repair Station Hacks 9 | . . . 3 . 4 . 2 . . . . . . Scan Component 7 | . . . 2 . 3 . 2 . . . . . . Repair 2 | . . . 1 . 1 . . . . . . . . Recycling Unit Hacks 4 | . . . . . . 4 . . . . . . . Retrieve Components 4 | . . . . . . 4 . . . . . . . Scanalyzer 4 | . . . 2 2 . . . . . . . . . Insert Component 2 | . . . 1 1 . . . . . . . . . Analyze 2 | . . . 1 1 . . . . . . . . . Garrison Access Hacks 1 | . . . . . . . . . . 1 . . . Seal Access 1 | . . . . . . . . . . 1 . . . Unauthorized Hacks 13 | . 1 . 1 2 2 2 1 . 1 3 . . . Terminals 13 | . 1 . 1 2 2 2 1 . 1 3 . . . Assimilate 1 | . . . . . . . . . 1 . . . . Botnet 11 | . 1 . 1 1 2 2 1 . . 3 . . . Operators 1 | . . . . 1 . . . . . . . . . Fabricators . | . . . . . . . . . . . . . . Repair Stations . | . . . . . . . . . . . . . . Recycling Units . | . . . . . . . . . . . . . . Scanalyzers . | . . . . . . . . . . . . . . Garrison Access . | . . . . . . . . . . . . . . Data Cores Recovered 1 | . . . . . . . . . . . . . 1 Used 1 | . . . . . . . . . . . . . 1 Hacking Detections 57 | . 2 . 7 2 8 11 4 2 4 12 2 . 3 Full Trace Events 8 | . . . 1 . 2 4 . . . 1 . . . Feedback Events 1 | . . . . . . 1 . . . . . . . Corruption 1 | . . . . . . 1 . . . . . . . Feedback Blocked . | . . . . . . . . . . . . . . Robot Schematics Acquired 4 | . . . . . . . . . . 4 . . . Robots Built . | . . . . . . . . . . . . . . Authchips . | . . . . . . . . . . . . . . Time . | . . . . . . . . . . . . . . Total Robot Build Rating . | . . . . . . . . . . . . . . Part Schematics Acquired 16 | . . . 1 1 . 3 . . . 11 . . . Parts Built . | . . . . . . . . . . . . . . Authchips . | . . . . . . . . . . . . . . Time . | . . . . . . . . . . . . . . Total Part Build Rating . | . . . . . . . . . . . . . . Parts Repaired 1 | . . . 1 . . . . . . . . . . Time 76 | . . . 32 . 44 . . . . . . . . Parts Recycled . | . . . . . . . . . . . . . . Recycled Matter . | . . . . . . . . . . . . . . Retrieved Matter . | . . . . . . . . . . . . . . Retrieved Components 14 | . . . . . . 14 . . . . . . . Parts Scanalyzed 2 | . . . 1 1 . . . . . . . . . Part Schematics Acquired 2 | . . . 1 1 . . . . . . . . . Parts Damaged . | . . . . . . . . . . . . . . Bothacking | -11 -10 -10 -8 -7 -7 -7 -5 -4 -3 -3 -2 -2 -1 ------------ Run | Yrd Mat Sub Mat Fac Sto Rec Fac Fac Res Qua Res DSF Acc Used RIF Installer . | . . . . . . . . . . . . . . Robots Hacked . | . . . . . . . . . . . . . . Non-combat . | . . . . . . . . . . . . . . Combat . | . . . . . . . . . . . . . . Robot Hacks Applied . | . . . . . . . . . . . . . . Relay Couplers Released . | . . . . . . . . . . . . . . Fabnet Peak Effective % . | . . . . . . . . . . . . . . Robots Rewired 2 | . . . . . . . 1 . 1 . . . . Allies Hacked . | . . . . . . . . . . . . . . Hacks Repelled . | . . . . . . . . . . . . . . Allies | -11 -10 -10 -8 -7 -7 -7 -5 -4 -3 -3 -2 -2 -1 -------- Run | Yrd Mat Sub Mat Fac Sto Rec Fac Fac Res Qua Res DSF Acc Total Allies 13 | . . . . . 10 . 1 . 2 . . . . Largest Group 10 | . . . . . 10 . 1 . 1 . . . . Highest-Rated Group 173 | . . . . . 173 . 49 . 116 . . . . Highest-Rated Ally 116 | . . . . . 29 . 49 . 116 . . . . Initial Warlord ECA Mod 9 | . . . . . . . . . . . . . 9 Total Orders 1 | . . . . . . . . . 1 . . . . FOLLOW 1 | . . . . . . . . . 1 . . . . Ally Attacks 74 | . . . . . 67 . 1 . 6 . . . . Total Damage 1107 | . . . . . 701 . 56 . 350 . . . . Kills 7 | . . . . . 6 . . . 1 . . . . Allies Corrupted . | . . . . . . . . . . . . . . Allies Melted 1 | . . . . . 1 . . . . . . . . Intel | -11 -10 -10 -8 -7 -7 -7 -5 -4 -3 -3 -2 -2 -1 ------- Run | Yrd Mat Sub Mat Fac Sto Rec Fac Fac Res Qua Res DSF Acc Active Infowar (turns) 10327 | 11 331 80 726 352 1919 148 1864 473 845 1840 260 449 1029 Sensors 8853 | . . . . 352 1809 148 1732 473 790 1811 260 449 1029 Structural 530 | . . . 530 . . . . . . . . . . Seismic 1147 | 11 331 80 725 . . . . . . . . . . Jamming 2627 | . . . . . 110 . 132 . 544 1511 134 183 13 Robot Analysis Total 3 | . . . 1 . . 2 . . . . . . . Derelict Logs Recovered 1 | . . 1 . . . . . . . . . . . Drone Launches . | . . . . . . . . . . . . . . Drone Recoveries . | . . . . . . . . . . . . . . Exploration | -11 -10 -10 -8 -7 -7 -7 -5 -4 -3 -3 -2 -2 -1 ------------- Run | Yrd Mat Sub Mat Fac Sto Rec Fac Fac Res Qua Res DSF Acc Turns Passed 21237 | 142 331 5303 2058 526 1959 2695 2225 473 845 2607 260 744 1069 Spaces Moved 10682 | 62 159 2884 870 263 824 1026 1117 243 493 1704 184 292 561 Core 2 | 2 . . . . . . . . . . . . . Treads 5358 | 55 159 539 419 263 824 239 604 243 493 908 66 292 254 Legs 3038 | . . 2345 63 . . . . . . 512 118 . . Wheels 1977 | 5 . . 388 . . 787 513 . . 284 . . . Hover 307 | . . . . . . . . . . . . . 307 Flight . | . . . . . . . . . . . . . . Fastest Speed 50 | 50 160 130 110 160 156 120 102 102 102 90 90 90 127 Average Speed 149 | 150 160 168 154 160 170 198 148 102 122 102 90 130 135 Slowest Speed 320 | 160 160 200 250 160 240 320 208 102 175 175 90 153 153 Overloaded Moves . | . . . . . . . . . . . . . . Propulsion Burnouts . | . . . . . . . . . . . . . . Robots Hopped . | . . . . . . . . . . . . . . Potential Cave-ins 5 | . . . . . . . . . . . . 5 . Cave-ins Triggered 1 | . . . 1 . . . . . . . . . . Teleports 1 | . . . . . . . . . . 1 . . . Exploration Rate (%) 45 | 5 30 94 67 8 93 94 27 6 11 87 4 91 13 Regions Visited 13 Branch Regions 4 Pre-discovered Areas . | . . . . . . . . . . . . . . Known Exits Taken 8 | . . . . 1 1 1 1 1 1 1 1 . . Unknown Exits Taken 4 | 1 1 1 1 . . . . . . . . . . Scrap Searched 9 | . . 9 . . . . . . . . . . . Spaces Dug 76 | . . 7 11 5 4 1 9 8 8 7 2 1 13 Terrain Destroyed 592 | . . 116 21 25 44 4 53 20 24 161 2 76 46 Melee 25 | . . 7 9 5 . . . . . 1 2 1 . Projectile 299 | . . 1 12 . 32 4 27 19 24 59 . 75 46 AOE 268 | . . 108 . 20 12 . 26 1 . 101 . . . Terrain Rammed . | . . . . . . . . . . . . . . Walls Destroyed . | . . . . . . . . . . . . . . Machines Disabled . | . . . . . . . . . . . . . . Actions | -11 -10 -10 -8 -7 -7 -7 -5 -4 -3 -3 -2 -2 -1 --------- Run | Yrd Mat Sub Mat Fac Sto Rec Fac Fac Res Qua Res DSF Acc Total 14755 | 87 207 3117 1328 330 1205 1678 1593 418 687 2423 272 626 784 Wait 2455 | . 17 26 150 10 196 617 337 108 120 467 75 249 83 Move 10668 | 61 158 2883 869 262 823 1025 1116 242 492 1703 183 291 560 Hop . | . . . . . . . . . . . . . . Pick Up 190 | 6 9 26 45 8 21 5 13 4 4 23 4 13 9 Fast Attach 84 | 7 3 7 21 . 4 4 4 1 3 20 . 6 4 Attach 78 | . . 8 27 4 2 . 2 3 2 12 2 6 10 Detach 26 | . 2 2 7 . 2 . 1 . 1 7 1 2 1 Swap 144 | 2 2 15 24 16 35 . 17 3 7 13 . 5 5 Drop 219 | 1 2 27 39 8 35 17 13 4 7 36 3 13 14 Fire 771 | 10 14 90 122 17 68 10 88 53 44 123 . 34 98 Melee 75 | . . 32 23 5 . . . . . 6 4 5 . Ram 1 | . . . . . . . . . . 1 . . . Kick . | . . . . . . . . . . . . . . Crush 1 | . . . 1 . . . . . . . . . . Escape Stasis 2 | . . . . . . . . . . . . 2 . Rewire 21 | . . . . . . . 2 . 7 12 . . . Trap 1 | . . 1 . . . . . . . . . . . Miscellaneous 19 | . . . . . 19 . . . . . . . . Route ------- -11/Scrapyard -10/Materials (discovered 2 exits: [*Min] / *Sub) -10/Subcaves (discovered 3 exits: *Mat x2 / *Rec) -8/Materials -7/Factory -7/Storage (discovered 2 exits: [*Fac] / *Rec) -7/Recycling -5/Factory (discovered 2 exits: *Fac / *Upp) -4/Factory -3/Research -3/Quarantine -2/Research -2/DSF -1/Access To Epsilon Eridani History --------- Turn | Location | Event 9 | -11/Scrapyard | Discovered new exit (range 15) 143 | -11/Scrapyard | Entered Materials 314 | -10/Materials | Build established: Mutant 424 | -10/Materials | Discovered new exit (range 6) 464 | -10/Materials | Discovered new exit (range 7) 474 | -10/Materials | Entered Subcaves 493 | -10/Subcaves | A swath of the cavern ceiling suddenly collapsed 680 | -10/Subcaves | Learned Materials emergency access door positions 906 | -10/Subcaves | Shifting Twisted Machinery released Sub. Optics 909 | -10/Subcaves | Shifting Twisted Machinery released Battle Cannon 953 | -10/Subcaves | Shifting Twisted Machinery released Battle Rifle 956 | -10/Subcaves | Discovered new exit (range 11) 1074 | -10/Subcaves | Shifting Twisted Machinery released Sub. Optics 1482 | -10/Subcaves | Visited 4L-MR0's lab 1510 | -10/Subcaves | Found Cargo Legs 1512 | -10/Subcaves | Attached Cargo Legs, gained temporary slots: Utility x2 1658 | -10/Subcaves | Ambushed by Subdweller buried in earth 1680 | -10/Subcaves | Discovered new exit (range 16) 2027 | -10/Subcaves | Core integrity fell below 50% 2098 | -10/Subcaves | Visited Clippyterm 2101 | -10/Subcaves | Learned Research security intel 2101 | -10/Subcaves | Learned Factory trap positions 2261 | -10/Subcaves | Lost 4 parts (1p2u1w) 2926 | -10/Subcaves | A swath of the cavern ceiling suddenly collapsed 3182 | -10/Subcaves | Discovered new exit (range 7) 3574 | -10/Subcaves | A Subdweller sparked back to life 3574 | -10/Subcaves | A Subdweller sparked back to life 3574 | -10/Subcaves | A Subdweller sparked back to life 3602 | -10/Subcaves | Found Power Bank 4700 | -10/Subcaves | Shifting Twisted Machinery released Scrap Shield 5777 | -10/Subcaves | Entered Materials 5777 | -8/Materials | Evolved 4 slots: Propulsion x2, Utility x2 5874 | -8/Materials | Repaired Battle Cannon 6275 | -8/Materials | Discovered new exit (range 16) 6276 | -8/Materials | Central database locked down 6806 | -8/Materials | Lost 4 parts (1n2u1w) 7668 | -8/Materials | Crushed by falling debris 7668 | -8/Materials | Core integrity fell below 50% 7668 | -8/Materials | System corruption reached 10% 7668 | -8/Materials | Garrison activated, responded to threat 7699 | -8/Materials | Lost 3 parts (1p2u) 7835 | -8/Materials | Entered Factory 7835 | -7/Factory | Evolved 2 slots: Utility x1, Weapon x1 7836 | -7/Factory | Loaded intel: 93 trap records 8353 | -7/Factory | Discovered new exit (range 6) 8359 | -7/Factory | Identified exit to Storage 8361 | -7/Factory | Entered Storage 8415 | -7/Storage | Assisted by bots powering up and referring to "LRC-V3" 8502 | -7/Storage | Lost 3 allies 8589 | -7/Storage | Lost 3 allies 8749 | -7/Storage | Found Prototype Launcher 8749 | -7/Storage | Identified Rocket Array 8852 | -7/Storage | Lost 3 allies 8857 | -7/Storage | Build established: Scavenger-Skirmisher 9143 | -7/Storage | Discovered new exit (range 16) 9905 | -7/Storage | Discovered new exit (range 3) 10173 | -7/Storage | Met 01-MTF 10284 | -7/Storage | Garrison activated, responded to threat 10313 | -7/Storage | Identified exit to Recycling 10320 | -7/Storage | Entered Recycling 10320 | -7/Recycling | Accompanied by 1 ally (01-MTF) 10439 | -7/Recycling | Entered Scraplab 10444 | -7/Recycling | Build established: Skirmisher 10471 | -7/Recycling | Found Prototype Device 10471 | -7/Recycling | Identified Scrap Engine 10769 | -7/Recycling | Build established: Mutant 11437 | -7/Recycling | Discovered new exit (range 9) 12037 | -7/Recycling | Build established: Construct 13009 | -7/Recycling | Identified exit to Factory 13015 | -7/Recycling | Entered Factory 13015 | -5/Factory | Evolved 4 slots: Power x1, Propulsion x1, Utility x2 14499 | -5/Factory | Discovered new exit (range 13) 14526 | -5/Factory | Identified exit to Upper Caves 15025 | -5/Factory | Discovered new exit (range 9) 15046 | -5/Factory | Identified exit to Factory 15240 | -5/Factory | Entered another Factory area 15240 | -4/Factory | Evolved 2 slots: Utility x2 15245 | -4/Factory | Identified exit to DSF 15369 | -4/Factory | Discovered new exit (range 15) 15460 | -4/Factory | Identified exit to Research 15713 | -4/Factory | Entered Research 15713 | -3/Research | Evolved 2 slots: Utility x1, Weapon x1 16166 | -3/Research | Spotted B-86 Titan 16177 | -3/Research | Rewired B-86 Titan 16352 | -3/Research | Found Prototype Processor 16352 | -3/Research | Identified Spectral Analyzer 16357 | -3/Research | Found Prototype Device 16357 | -3/Research | Identified Exp. Shield Generator 16360 | -3/Research | Found Exp. Shield Generator 16548 | -3/Research | Discovered new exit (range 8) 16556 | -3/Research | Identified exit to Quarantine 16558 | -3/Research | Entered Quarantine 16658 | -3/Quarantine | Found Alien Artifact 16658 | -3/Quarantine | Identified Terrabomb 16658 | -3/Quarantine | Used Terrabomb 16673 | -3/Quarantine | Found Terrabomb 16898 | -3/Quarantine | Destroyed 7 combat bots 16911 | -3/Quarantine | Discovered new exit (range 15) 16940 | -3/Quarantine | Identified exit to Research 17109 | -3/Quarantine | Found Alien Artifact 17109 | -3/Quarantine | Identified Transdimensional Reconstructor 17109 | -3/Quarantine | Warped through subspace 17138 | -3/Quarantine | Found Alien Artifact 17138 | -3/Quarantine | Identified Subatomic Replicator 17586 | -3/Quarantine | System corruption reached 10% 17773 | -3/Quarantine | Used Terrabomb 17826 | -3/Quarantine | Destroyed 8 combat bots 17919 | -3/Quarantine | Met incapacitated Sigix Warrior 17919 | -3/Quarantine | Lockdown squad dispatched 18034 | -3/Quarantine | Spotted Lightning 18037 | -3/Quarantine | Spotted Lightning 18040 | -3/Quarantine | Spotted Lightning 18059 | -3/Quarantine | Found Alien Energy Cannon 18059 | -3/Quarantine | Identified Core Cannon 18078 | -3/Quarantine | Destroyed Lightning 18090 | -3/Quarantine | Destroyed Lightning 18091 | -3/Quarantine | Core integrity fell below 50% 18100 | -3/Quarantine | Destroyed Lightning 18108 | -3/Quarantine | Lost 7 parts (3u4w) 18119 | -3/Quarantine | Found Alien Artifact 18119 | -3/Quarantine | Identified Phase Armor 18144 | -3/Quarantine | Acquired the access code to the Sigix quarantine chamber 18185 | -3/Quarantine | Unlocked Sigix quarantine chamber 18192 | -3/Quarantine | Used Subatomic Replicator to replicate Core Cannon 18198 | -3/Quarantine | Found Sigix Containment Pod 18556 | -3/Quarantine | System corruption reached 30% 18732 | -3/Quarantine | Build established: Tank 18940 | -3/Quarantine | Found Alien Impact Weapon 18940 | -3/Quarantine | Identified Core Stripper 18988 | -3/Quarantine | Found Sigix Corpse 19058 | -3/Quarantine | First assault squad dispatched 19165 | -3/Quarantine | Entered Research 19165 | -2/Research | Evolved 2 slots: Power x1, Utility x1 19276 | -2/Research | Build established: Mutant 19371 | -2/Research | Identified exit to DSF 19415 | -2/Research | First assault squad dispatched 19425 | -2/Research | Entered DSF 19521 | -2/DSF | Additional patrols routed to DSF 19596 | -2/DSF | System corruption reached 10% 19875 | -2/DSF | System corruption reached 30% 19886 | -2/DSF | Found Quantum Capacitor 19926 | -2/DSF | Sterilization system engaged 19946 | -2/DSF | Ambient heat levels rising (+10) 19961 | -2/DSF | Ambient heat levels rising (+10) 19976 | -2/DSF | Ambient heat levels rising (+10) 19991 | -2/DSF | Ambient heat levels rising (+10) 20006 | -2/DSF | Ambient heat levels rising (+10) 20021 | -2/DSF | Ambient heat levels rising (+10) 20036 | -2/DSF | Ambient heat levels rising (+10) 20051 | -2/DSF | Ambient heat levels rising (+10) 20066 | -2/DSF | Ambient heat levels rising (+10) 20081 | -2/DSF | Ambient heat levels rising (+10) 20096 | -2/DSF | Ambient heat levels rising (+10) 20111 | -2/DSF | Ambient heat levels rising (+10) 20126 | -2/DSF | Ambient heat levels rising (+10) 20141 | -2/DSF | Ambient heat levels rising (+10) 20144 | -2/DSF | Discovered new exit (range 15) 20156 | -2/DSF | Ambient heat levels rising (+10) 20169 | -2/DSF | Entered Access 20169 | -1/Access | Evolved 2 slots: Propulsion x1, Utility x1 20438 | -1/Access | Garrison activated, responded to threat 20481 | -1/Access | Destroyed 7 combat bots 20621 | -1/Access | Spotted B-99 Colossus 20722 | -1/Access | Build established: Scavenger-Construct 21114 | -1/Access | Destroyed B-99 Colossus 21137 | -1/Access | Spotted B-99 Colossus 21169 | -1/Access | First assault squad dispatched 21187 | -1/Access | Destroyed B-99 Colossus 21209 | -1/Access | Garrison activated, responded to threat 21221 | -1/Access | Lost 4 parts (3u1w) 21225 | -1/Access | Discovered new exit (range 5) 21235 | -1/Access | Identified exit to Surface 21238 | *** | Escaped! Last Messages --------------- 21213_ U-05 Engineer lays Concrete. 21216_ Penetrated by Slug. 21221_ Slug penetrates Sealed Heavy Doors. 21221_ Penetrated by Slug. 21223_ Main Access Shell breached. 21225_ EXIT=FOUND 21230_ Beam penetrates Main Access Shell. 21230_ Beam penetrates Reinforced Barrier. 21235_ EXIT=IDENTIFIED: SURFACE 21236_ Beam penetrates Main Access Shell. 21236_ Beam penetrates H-88 Terminator. 21236_ H-88 Terminator suffers critical hit (Destroy). 21236_ Destroyed Adv. Phase Shifter. 21236_ H-88 Terminator destroyed. 21237_ Penetrated by Slug. 21238_ C-30 ARC bursts open, deploying its payload. 21238_ L-61 Swordsman unfolds itself. 21238_ G-73 Enforcer unfolds itself. Map ----- +----------------------------------------------------+ | # !| ##+# ##########+### | | " # [%* #?# | | """ =# ! # #?# | | """ *+% " " #?# | | " [# * % """ #?## | | # = [ """ #### | | ! # * # " + | | ##########+##########"" ^ # % #### | | ????# #??# " ^^ = /#??? | | ????# #?###" ^ "# ##############??? | | ????# " #?# ## #???????????????? | | ????# """" #?# *! % #?##???????????????? | | ????#""""" #?#]!= %%! #??????????????????? | | ????# """"" #?#!%*! !*= #??????????????????? | | ????# """" #?#==[ ![%=%#??????????????????? | | ????# " #?# ] !]!%#??????????????????? | | ????# #?# [ #??????????????????? | | ????# #?#"""=%"""""#??????????????????? | | ????# #????""h"???????????????????????? | | ????# #?????" "???????????????????????? | | ????######"#######?#"""" """""#??????????????????? | | ?????????# #???????# li #??????????????????? | | ?????????# #???????# l" """ #??????????????????? | | ?????????###???????# "g "??#??????????????????? | | ???????????????????# " "" " ####???????????????? | | ???????????????????# "@ ; ????????? | | ???????????????????# " " ####???????????????? | | ???????????????????# """"""?????????????????????? | | ???????????????????# ??????????????????????????? | | ???????????????????# ??????????????????????????? | | ???????????????????""""??????????????????????????? | | ?????????????????????????????????????????????????? | | ?????????????????????????????????????????????????? | | ?????????????????????????????????????????????????? | | ?????????????????????????????????????????????????? | | ?????????????????????????????????????????????????? | | ?????????????????????????????????????????????????? | | ?????????????????????????????????????????????????? | | ?????????????????????????????????????????????????? | | ?????????????????????????????????????????????????? | | ?????????????????????????????????????????????????? | | ?????????????????????????????????????????????????? | | ?????????????????????????????????????????????????? | | ?????????????????????????????????????????????????? | | ?????????????????????????????????????????????????? | | ?????????????????????????????????????????????????? | | ?????????????????????????????????????????????????? | | ?????????????????????????????????????????????????? | | ?????????????????????????????????????????????????? | | ?????????????????????????????????????????????????? | +----------------------------------------------------+ Best States ------------- Heat Dissipation 128 Coolant Potential 65 Energy Generation 94 Energy Capacity 1540 Matter Stores 300 Matter Capacity 300 Sight Range 16 Robot Scan Range 18 Terrain Scan Density 10 Jamming Range 16 Base Temperature (-) 200 Armor Coverage 950 Resistance: KI 30 Propulsion Shielding 66 Weapon Shielding 66 Weapon Cycling 20 Evasion (%) 57 Targeting Accuracy 8 Armor Integrity Analysis 40 Recoil Reduction 4 Offensive Hacking 12 Item Schematics ----------------- Adv. Beam Cannon | -8/Materials | Scanalyzed Imp. Weapon Shielding | -7/Factory | Scanalyzed Imp. Cooling System | -7/Recycling | Hacked Thunder Leg | -7/Recycling | Hacked Proton Cannon | -7/Recycling | Hacked Helical Railgun | -3/Quarantine | Archive Hvy. Dispersion Rifle | -3/Quarantine | Archive Cld. Fission Core | -3/Quarantine | Archive Com. Mass Driver | -3/Quarantine | Archive Gravity Neutralizer | -3/Quarantine | Archive Enh. Force Rifle | -3/Quarantine | Archive Adv. Variable Charge Gun | -3/Quarantine | Archive Cld. Phase Cannon | -3/Quarantine | Archive Imp. Lightning Gun | -3/Quarantine | Archive Exp. Optical Array | -3/Quarantine | Archive Adv. Energy Well | -3/Quarantine | Archive Robot Schematics ------------------ S-43 Plague | -3/Quarantine | Archive R-10 Processor | -3/Quarantine | Archive A-15 Conveyor | -3/Quarantine | Archive T-07 Excavator | -3/Quarantine | Archive Fabricated ------------ Nothing Repaired ---------- Battle Cannon | 25% | -8/Materials Alien Tech Used ----------------- Terrabomb Transdimensional Reconstructor Subatomic Replicator Core Cannon Phase Armor Core Stripper Achievements -------------- Origins Sunderer Challenges ------------ None Game ------ Seed LaserPulseTorch Manual? 0 Play Time 04:03:56 Cumulative 167.5 hours Start 2025.06.19 @ 17:20:53 End 2025.06.19 @ 22:03:54 Sessions 3 Manual Loads 0 Difficulty Rogue Special Mode None Game No. 117 Rogue 117 Adventurer 0 Explorer 0 Win Type 0 Total 2 Types 2/0/0/0/0/0/0/0/0/0 Lore% 59 Gallery% 55 Achievement% 49 Wizard Run 0 Options --------- Layout 1 ASCII 0 Keyboard 0 Movement Mouse Keybinds 0 Fullscreen 1 Font 24/Smallcaps Map View 50x35 Zoom Use 0% Tactical HUD 1 Map Filters NONE Filters NONE Steam 1 RUN: c94220f9-9a54-4b5a-9601-2da761773836